Workbook

Sheet 部位+Greeks分析
A1: AlgoMaster264 | C1: =RTD("irtdq",,"System","AlgoMaster264") -> 
A3: 账号 | B3: 合约 | C3: 净仓 | D3: 多仓 | E3: 空仓 | F3: 持仓Delta | G3: $Delta | H3: 1%Gamma | I3: $Theta | J3: $Vega | K3: $Rho | L3: $Charm | M3: $Vanna | N3: $Vomma | O3: $Speed | P3: $Zomma | Q3: 时间价值 | R3: 估算当日盈亏 | S3: 估算理论盈亏 | T3: 备兑仓 | U3: 多仓可平仓量 | V3: 空仓可平仓量 | W3: 均价 | X3: 开仓价 | Y3: 多仓均价 | Z3: 空仓均价 | AA3: 逐日浮动盈亏 | AB3: 逐日浮动盈亏% | AC3: 逐笔浮动盈亏 | AD3: 逐笔浮动盈亏% | AE3: 市值 | AF3: 最新价 | AG3: 涨跌幅 | AH3: 买价 | AI3: 卖价 | AJ3: 买量 | AK3: 卖量 | AL3: 占用保证金 | AM3: 冻结保证金 | AN3: 手续费 | AO3: 合约类别 | AP3: 交易所 | AQ3: 行权价
A5: 总计: | G5: =SUM(G6:G16) -> -12651.5196 | H5: =SUM(H6:H16) -> 169.1401 | I5: =SUM(I6:I16) -> -299.1944 | J5: =SUM(J6:J16) -> 588.4936
A7: 1999_2-0101944 | B7: TC.O.SSE.510050.202009.C.3 | C7: =RTD("irtdq",,"Position","TC.O.SSE.510050.202009.C.3","1999_2-0101944","Quantity") -> -2 | D7: =RTD("irtdq",,"Position","TC.O.SSE.510050.202009.C.3","1999_2-0101944","SumLongQty") -> 0 | E7: =RTD("irtdq",,"Position","TC.O.SSE.510050.202009.C.3","1999_2-0101944","SumShortQty") -> 2 | F7: =RTD("irtdq",,"Position","TC.O.SSE.510050.202009.C.3","1999_2-0101944","PosDelta") -> -1.902691148 | G7: =RTD("irtdq",,"Position","TC.O.SSE.510050.202009.C.3","1999_2-0101944","$Delta") -> -19026.9115 | H7: =RTD("irtdq",,"Position","TC.O.SSE.510050.202009.C.3","1999_2-0101944","$Gamma") -> -5.4556 | I7: =RTD("irtdq",,"Position","TC.O.SSE.510050.202009.C.3","1999_2-0101944","$Theta") -> 267.1856 | J7: =RTD("irtdq",,"Position","TC.O.SSE.510050.202009.C.3","1999_2-0101944","$Vega") -> -3.0215 | K7: =RTD("irtdq",,"Position","TC.O.SSE.510050.202009.C.3","1999_2-0101944","$Rho") -> 0.1276 | L7: =RTD("irtdq",,"Position","TC.O.SSE.510050.202009.C.3","1999_2-0101944","$Charm") -> -2575156.025 | M7: =RTD("irtdq",,"Position","TC.O.SSE.510050.202009.C.3","1999_2-0101944","$Vanna") -> 2438.4514 | N7: =RTD("irtdq",,"Position","TC.O.SSE.510050.202009.C.3","1999_2-0101944","$Vomma") -> -605.2857 | O7: =RTD("irtdq",,"Position","TC.O.SSE.510050.202009.C.3","1999_2-0101944","$Speed") -> 289282.537 | P7: =RTD("irtdq",,"Position","TC.O.SSE.510050.202009.C.3","1999_2-0101944","$Zomma") -> -12711.4072 | Q7: =RTD("irtdq",,"Position","TC.O.SSE.510050.202009.C.3","1999_2-0101944","PosTimeValue") -> -56 | R7: =RTD("irtdq",,"Position","TC.O.SSE.510050.202009.C.3","1999_2-0101944","PNL") -> 213.999999 | S7: =RTD("irtdq",,"Position","TC.O.SSE.510050.202009.C.3","1999_2-0101944","TheoPNL") -> 214.001048 | T7: =RTD("irtdq",,"Position","TC.O.SSE.510050.202009.C.3","1999_2-0101944","Covered") -> 0 | U7: =RTD("irtdq",,"Position","TC.O.SSE.510050.202009.C.3","1999_2-0101944","LongAvailable") -> 0 | V7: =RTD("irtdq",,"Position","TC.O.SSE.510050.202009.C.3","1999_2-0101944","ShortAvailable") -> 2 | W7: =RTD("irtdq",,"Position","TC.O.SSE.510050.202009.C.3","1999_2-0101944","AveragePrice") -> 0.4042 | X7: =RTD("irtdq",,"Position","TC.O.SSE.510050.202009.C.3","1999_2-0101944","OpenPrice") -> 0.4042 | Y7: =RTD("irtdq",,"Position","TC.O.SSE.510050.202009.C.3","1999_2-0101944","LongAvgPrice") -> 0 | Z7: =RTD("irtdq",,"Position","TC.O.SSE.510050.202009.C.3","1999_2-0101944","ShortAvgPrice") -> 0.4042 | AA7: =RTD("irtdq",,"Position","TC.O.SSE.510050.202009.C.3","1999_2-0101944","FloatProfitByDate") -> 1857.999999 | AB7: =RTD("irtdq",,"Position","TC.O.SSE.510050.202009.C.3","1999_2-0101944","FloatProfitByDatePercent") -> 22.98367144 | AC7: =RTD("irtdq",,"Position","TC.O.SSE.510050.202009.C.3","1999_2-0101944","FloatProfitByTrade") -> 1857.999999 | AD7: =RTD("irtdq",,"Position","TC.O.SSE.510050.202009.C.3","1999_2-0101944","FloatProfitByTradePercent") -> 22.98367144 | AE7: =RTD("irtdq",,"Position","TC.O.SSE.510050.202009.C.3","1999_2-0101944","MarketPrice") -> -6226.000001 | AF7: =RTD("irtdq",,"TC.O.SSE.510050.202009.C.3","Last") -> 0.31 | AG7: =RTD("irtdq",,"TC.O.SSE.510050.202009.C.3","PercentChange") -> -3.726708075 | AH7: =RTD("irtdq",,"TC.O.SSE.510050.202009.C.3","Bid") -> 0.309 | AI7: =RTD("irtdq",,"TC.O.SSE.510050.202009.C.3","Ask") -> 0.3137 | AJ7: =RTD("irtdq",,"TC.O.SSE.510050.202009.C.3","BidQty") -> 1 | AK7: =RTD("irtdq",,"TC.O.SSE.510050.202009.C.3","AskQty") -> 1 | AL7: =RTD("irtdq",,"Position","TC.O.SSE.510050.202009.C.3","1999_2-0101944","UsedMargin") -> 0 | AM7: =RTD("irtdq",,"Position","TC.O.SSE.510050.202009.C.3","1999_2-0101944","FrozenMargin") -> 0 | AN7: =RTD("irtdq",,"Position","TC.O.SSE.510050.202009.C.3","1999_2-0101944","Commission") -> 0 | AO7: O | AP7: SSE | AQ7: 3
A8: 1999_2-0101944 | B8: TC.O.SZSE.159919A.202009.P.4.647 | C8: =RTD("irtdq",,"Position","TC.O.SZSE.159919A.202009.P.4.647","1999_2-0101944","Quantity") -> -1 | D8: =RTD("irtdq",,"Position","TC.O.SZSE.159919A.202009.P.4.647","1999_2-0101944","SumLongQty") -> 0 | E8: =RTD("irtdq",,"Position","TC.O.SZSE.159919A.202009.P.4.647","1999_2-0101944","SumShortQty") -> 1 | F8: =RTD("irtdq",,"Position","TC.O.SZSE.159919A.202009.P.4.647","1999_2-0101944","PosDelta") -> 0.9667798803 | G8: =RTD("irtdq",,"Position","TC.O.SZSE.159919A.202009.P.4.647","1999_2-0101944","$Delta") -> 9667.7988 | H8: =RTD("irtdq",,"Position","TC.O.SZSE.159919A.202009.P.4.647","1999_2-0101944","$Gamma") -> -100.6011 | I8: =RTD("irtdq",,"Position","TC.O.SZSE.159919A.202009.P.4.647","1999_2-0101944","$Theta") -> 3.794 | J8: =RTD("irtdq",,"Position","TC.O.SZSE.159919A.202009.P.4.647","1999_2-0101944","$Vega") -> -1.5524 | K8: =RTD("irtdq",,"Position","TC.O.SZSE.159919A.202009.P.4.647","1999_2-0101944","$Rho") -> 0.0029 | L8: =RTD("irtdq",,"Position","TC.O.SZSE.159919A.202009.P.4.647","1999_2-0101944","$Charm") -> 1514734.326 | M8: =RTD("irtdq",,"Position","TC.O.SZSE.159919A.202009.P.4.647","1999_2-0101944","$Vanna") -> -37198.5802 | N8: =RTD("irtdq",,"Position","TC.O.SZSE.159919A.202009.P.4.647","1999_2-0101944","$Vomma") -> -14318.9179 | O8: =RTD("irtdq",,"Position","TC.O.SZSE.159919A.202009.P.4.647","1999_2-0101944","$Speed") -> -105418898.3 | P8: =RTD("irtdq",,"Position","TC.O.SZSE.159919A.202009.P.4.647","1999_2-0101944","$Zomma") -> -6264200.727 | Q8: =RTD("irtdq",,"Position","TC.O.SZSE.159919A.202009.P.4.647","1999_2-0101944","PosTimeValue") -> 0 | R8: =RTD("irtdq",,"Position","TC.O.SZSE.159919A.202009.P.4.647","1999_2-0101944","PNL") -> 217.9999995 | S8: =RTD("irtdq",,"Position","TC.O.SZSE.159919A.202009.P.4.647","1999_2-0101944","TheoPNL") -> 217.999792 | T8: =RTD("irtdq",,"Position","TC.O.SZSE.159919A.202009.P.4.647","1999_2-0101944","Covered") -> 0 | U8: =RTD("irtdq",,"Position","TC.O.SZSE.159919A.202009.P.4.647","1999_2-0101944","LongAvailable") -> 0 | V8: =RTD("irtdq",,"Position","TC.O.SZSE.159919A.202009.P.4.647","1999_2-0101944","ShortAvailable") -> 1 | W8: =RTD("irtdq",,"Position","TC.O.SZSE.159919A.202009.P.4.647","1999_2-0101944","AveragePrice") -> 0.016 | X8: =RTD("irtdq",,"Position","TC.O.SZSE.159919A.202009.P.4.647","1999_2-0101944","OpenPrice") -> 0.016 | Y8: =RTD("irtdq",,"Position","TC.O.SZSE.159919A.202009.P.4.647","1999_2-0101944","LongAvgPrice") -> 0 | Z8: =RTD("irtdq",,"Position","TC.O.SZSE.159919A.202009.P.4.647","1999_2-0101944","ShortAvgPrice") -> 0.016 | AA8: =RTD("irtdq",,"Position","TC.O.SZSE.159919A.202009.P.4.647","1999_2-0101944","FloatProfitByDate") -> 17.9999995 | AB8: =RTD("irtdq",,"Position","TC.O.SZSE.159919A.202009.P.4.647","1999_2-0101944","FloatProfitByDatePercent") -> 11.24999969 | AC8: =RTD("irtdq",,"Position","TC.O.SZSE.159919A.202009.P.4.647","1999_2-0101944","FloatProfitByTrade") -> 17.9999995 | AD8: =RTD("irtdq",,"Position","TC.O.SZSE.159919A.202009.P.4.647","1999_2-0101944","FloatProfitByTradePercent") -> 11.24999969 | AE8: =RTD("irtdq",,"Position","TC.O.SZSE.159919A.202009.P.4.647","1999_2-0101944","MarketPrice") -> -142 | AF8: =RTD("irtdq",,"TC.O.SZSE.159919A.202009.P.4.647","Last") -> 0.0141 | AG8: =RTD("irtdq",,"TC.O.SZSE.159919A.202009.P.4.647","PercentChange") -> -60.83333333 | AH8: =RTD("irtdq",,"TC.O.SZSE.159919A.202009.P.4.647","Bid") -> 0.0141 | AI8: =RTD("irtdq",,"TC.O.SZSE.159919A.202009.P.4.647","Ask") -> 0.0143 | AJ8: =RTD("irtdq",,"TC.O.SZSE.159919A.202009.P.4.647","BidQty") -> 56 | AK8: =RTD("irtdq",,"TC.O.SZSE.159919A.202009.P.4.647","AskQty") -> 1 | AL8: =RTD("irtdq",,"Position","TC.O.SZSE.159919A.202009.P.4.647","1999_2-0101944","UsedMargin") -> 0 | AM8: =RTD("irtdq",,"Position","TC.O.SZSE.159919A.202009.P.4.647","1999_2-0101944","FrozenMargin") -> 0 | AN8: =RTD("irtdq",,"Position","TC.O.SZSE.159919A.202009.P.4.647","1999_2-0101944","Commission") -> 0 | AO8: O | AP8: SZSE | AQ8: 4.647
A9: 1999_2-0101944 | B9: TC.O.CFFEX.IO.202010.C.4750 | C9: =RTD("irtdq",,"Position","TC.O.CFFEX.IO.202010.C.4750","1999_2-0101944","Quantity") -> 2 | D9: =RTD("irtdq",,"Position","TC.O.CFFEX.IO.202010.C.4750","1999_2-0101944","SumLongQty") -> 2 | E9: =RTD("irtdq",,"Position","TC.O.CFFEX.IO.202010.C.4750","1999_2-0101944","SumShortQty") -> 0 | F9: =RTD("irtdq",,"Position","TC.O.CFFEX.IO.202010.C.4750","1999_2-0101944","PosDelta") -> 0.4577457307 | G9: =RTD("irtdq",,"Position","TC.O.CFFEX.IO.202010.C.4750","1999_2-0101944","$Delta") -> 45.7746 | H9: =RTD("irtdq",,"Position","TC.O.CFFEX.IO.202010.C.4750","1999_2-0101944","$Gamma") -> 242.5845 | I9: =RTD("irtdq",,"Position","TC.O.CFFEX.IO.202010.C.4750","1999_2-0101944","$Theta") -> -525.6768 | J9: =RTD("irtdq",,"Position","TC.O.CFFEX.IO.202010.C.4750","1999_2-0101944","$Vega") -> 557.59 | K9: =RTD("irtdq",,"Position","TC.O.CFFEX.IO.202010.C.4750","1999_2-0101944","$Rho") -> -2.7576 | L9: =RTD("irtdq",,"Position","TC.O.CFFEX.IO.202010.C.4750","1999_2-0101944","$Charm") -> -2693563.661 | M9: =RTD("irtdq",,"Position","TC.O.CFFEX.IO.202010.C.4750","1999_2-0101944","$Vanna") -> 171.5108 | N9: =RTD("irtdq",,"Position","TC.O.CFFEX.IO.202010.C.4750","1999_2-0101944","$Vomma") -> 117256.1898 | O9: =RTD("irtdq",,"Position","TC.O.CFFEX.IO.202010.C.4750","1999_2-0101944","$Speed") -> 2.8021 | P9: =RTD("irtdq",,"Position","TC.O.CFFEX.IO.202010.C.4750","1999_2-0101944","$Zomma") -> -0.335 | Q9: =RTD("irtdq",,"Position","TC.O.CFFEX.IO.202010.C.4750","1999_2-0101944","PosTimeValue") -> 6760 | R9: =RTD("irtdq",,"Position","TC.O.CFFEX.IO.202010.C.4750","1999_2-0101944","PNL") -> -3240 | S9: =RTD("irtdq",,"Position","TC.O.CFFEX.IO.202010.C.4750","1999_2-0101944","TheoPNL") -> -3239.966829 | T9: =RTD("irtdq",,"Position","TC.O.CFFEX.IO.202010.C.4750","1999_2-0101944","Covered") -> 0 | U9: =RTD("irtdq",,"Position","TC.O.CFFEX.IO.202010.C.4750","1999_2-0101944","LongAvailable") -> 2 | V9: =RTD("irtdq",,"Position","TC.O.CFFEX.IO.202010.C.4750","1999_2-0101944","ShortAvailable") -> 0 | W9: =RTD("irtdq",,"Position","TC.O.CFFEX.IO.202010.C.4750","1999_2-0101944","AveragePrice") -> 101.6 | X9: =RTD("irtdq",,"Position","TC.O.CFFEX.IO.202010.C.4750","1999_2-0101944","OpenPrice") -> 101.6 | Y9: =RTD("irtdq",,"Position","TC.O.CFFEX.IO.202010.C.4750","1999_2-0101944","LongAvgPrice") -> 101.6 | Z9: =RTD("irtdq",,"Position","TC.O.CFFEX.IO.202010.C.4750","1999_2-0101944","ShortAvgPrice") -> 0 | AA9: =RTD("irtdq",,"Position","TC.O.CFFEX.IO.202010.C.4750","1999_2-0101944","FloatProfitByDate") -> -13600 | AB9: =RTD("irtdq",,"Position","TC.O.CFFEX.IO.202010.C.4750","1999_2-0101944","FloatProfitByDatePercent") -> -66.92913386 | AC9: =RTD("irtdq",,"Position","TC.O.CFFEX.IO.202010.C.4750","1999_2-0101944","FloatProfitByTrade") -> -13600 | AD9: =RTD("irtdq",,"Position","TC.O.CFFEX.IO.202010.C.4750","1999_2-0101944","FloatProfitByTradePercent") -> -66.92913386 | AE9: =RTD("irtdq",,"Position","TC.O.CFFEX.IO.202010.C.4750","1999_2-0101944","MarketPrice") -> 6720 | AF9: =RTD("irtdq",,"TC.O.CFFEX.IO.202010.C.4750","Last") -> 33.8 | AG9: =RTD("irtdq",,"TC.O.CFFEX.IO.202010.C.4750","PercentChange") -> -32.12851406 | AH9: =RTD("irtdq",,"TC.O.CFFEX.IO.202010.C.4750","Bid") -> 33.2 | AI9: =RTD("irtdq",,"TC.O.CFFEX.IO.202010.C.4750","Ask") -> 34 | AJ9: =RTD("irtdq",,"TC.O.CFFEX.IO.202010.C.4750","BidQty") -> 12 | AK9: =RTD("irtdq",,"TC.O.CFFEX.IO.202010.C.4750","AskQty") -> 3 | AL9: =RTD("irtdq",,"Position","TC.O.CFFEX.IO.202010.C.4750","1999_2-0101944","UsedMargin") -> 0 | AM9: =RTD("irtdq",,"Position","TC.O.CFFEX.IO.202010.C.4750","1999_2-0101944","FrozenMargin") -> 0 | AN9: =RTD("irtdq",,"Position","TC.O.CFFEX.IO.202010.C.4750","1999_2-0101944","Commission") -> 0 | AO9: O | AP9: CFFEX | AQ9: 4750
A10: 1999_2-0101944 | B10: TC.O.SSE.510050.202009.C.3.4 | C10: =RTD("irtdq",,"Position","TC.O.SSE.510050.202009.C.3.4","1999_2-0101944","Quantity") -> 1 | D10: =RTD("irtdq",,"Position","TC.O.SSE.510050.202009.C.3.4","1999_2-0101944","SumLongQty") -> 1 | E10: =RTD("irtdq",,"Position","TC.O.SSE.510050.202009.C.3.4","1999_2-0101944","SumShortQty") -> 0 | F10: =RTD("irtdq",,"Position","TC.O.SSE.510050.202009.C.3.4","1999_2-0101944","PosDelta") -> 0.0079984142 | G10: =RTD("irtdq",,"Position","TC.O.SSE.510050.202009.C.3.4","1999_2-0101944","$Delta") -> 79.9841 | H10: =RTD("irtdq",,"Position","TC.O.SSE.510050.202009.C.3.4","1999_2-0101944","$Gamma") -> 3.0952 | I10: =RTD("irtdq",,"Position","TC.O.SSE.510050.202009.C.3.4","1999_2-0101944","$Theta") -> -5.5528 | J10: =RTD("irtdq",,"Position","TC.O.SSE.510050.202009.C.3.4","1999_2-0101944","$Vega") -> 0.3281 | K10: =RTD("irtdq",,"Position","TC.O.SSE.510050.202009.C.3.4","1999_2-0101944","$Rho") -> 0 | L10: =RTD("irtdq",,"Position","TC.O.SSE.510050.202009.C.3.4","1999_2-0101944","$Charm") -> -423501.3383 | M10: =RTD("irtdq",,"Position","TC.O.SSE.510050.202009.C.3.4","1999_2-0101944","$Vanna") -> 2095.2886 | N10: =RTD("irtdq",,"Position","TC.O.SSE.510050.202009.C.3.4","1999_2-0101944","$Vomma") -> 755.6646 | O10: =RTD("irtdq",,"Position","TC.O.SSE.510050.202009.C.3.4","1999_2-0101944","$Speed") -> 1196784.679 | P10: =RTD("irtdq",,"Position","TC.O.SSE.510050.202009.C.3.4","1999_2-0101944","$Zomma") -> 110334.5656 | Q10: =RTD("irtdq",,"Position","TC.O.SSE.510050.202009.C.3.4","1999_2-0101944","PosTimeValue") -> 1 | R10: =RTD("irtdq",,"Position","TC.O.SSE.510050.202009.C.3.4","1999_2-0101944","PNL") -> -10.9999995 | S10: =RTD("irtdq",,"Position","TC.O.SSE.510050.202009.C.3.4","1999_2-0101944","TheoPNL") -> -11.000062 | T10: =RTD("irtdq",,"Position","TC.O.SSE.510050.202009.C.3.4","1999_2-0101944","Covered") -> 0 | U10: =RTD("irtdq",,"Position","TC.O.SSE.510050.202009.C.3.4","1999_2-0101944","LongAvailable") -> 1 | V10: =RTD("irtdq",,"Position","TC.O.SSE.510050.202009.C.3.4","1999_2-0101944","ShortAvailable") -> 0 | W10: =RTD("irtdq",,"Position","TC.O.SSE.510050.202009.C.3.4","1999_2-0101944","AveragePrice") -> 0.0196 | X10: =RTD("irtdq",,"Position","TC.O.SSE.510050.202009.C.3.4","1999_2-0101944","OpenPrice") -> 0.0196 | Y10: =RTD("irtdq",,"Position","TC.O.SSE.510050.202009.C.3.4","1999_2-0101944","LongAvgPrice") -> 0.0196 | Z10: =RTD("irtdq",,"Position","TC.O.SSE.510050.202009.C.3.4","1999_2-0101944","ShortAvgPrice") -> 0 | AA10: =RTD("irtdq",,"Position","TC.O.SSE.510050.202009.C.3.4","1999_2-0101944","FloatProfitByDate") -> -194.9999995 | AB10: =RTD("irtdq",,"Position","TC.O.SSE.510050.202009.C.3.4","1999_2-0101944","FloatProfitByDatePercent") -> -99.48979566 | AC10: =RTD("irtdq",,"Position","TC.O.SSE.510050.202009.C.3.4","1999_2-0101944","FloatProfitByTrade") -> -194.9999995 | AD10: =RTD("irtdq",,"Position","TC.O.SSE.510050.202009.C.3.4","1999_2-0101944","FloatProfitByTradePercent") -> -99.48979566 | AE10: =RTD("irtdq",,"Position","TC.O.SSE.510050.202009.C.3.4","1999_2-0101944","MarketPrice") -> 1 | AF10: =RTD("irtdq",,"TC.O.SSE.510050.202009.C.3.4","Last") -> 0.0001 | AG10: =RTD("irtdq",,"TC.O.SSE.510050.202009.C.3.4","PercentChange") -> -91.66666667 | AH10: =RTD("irtdq",,"TC.O.SSE.510050.202009.C.3.4","Bid") -> 0.0001 | AI10: =RTD("irtdq",,"TC.O.SSE.510050.202009.C.3.4","Ask") -> 0.0001 | AJ10: =RTD("irtdq",,"TC.O.SSE.510050.202009.C.3.4","BidQty") -> 0 | AK10: =RTD("irtdq",,"TC.O.SSE.510050.202009.C.3.4","AskQty") -> 1620 | AL10: =RTD("irtdq",,"Position","TC.O.SSE.510050.202009.C.3.4","1999_2-0101944","UsedMargin") -> 0 | AM10: =RTD("irtdq",,"Position","TC.O.SSE.510050.202009.C.3.4","1999_2-0101944","FrozenMargin") -> 0 | AN10: =RTD("irtdq",,"Position","TC.O.SSE.510050.202009.C.3.4","1999_2-0101944","Commission") -> 0 | AO10: O | AP10: SSE | AQ10: 3.4
A11: 1999_2-0101944 | B11: TC.O.SSE.510300.202009.C.4.7 | C11: =RTD("irtdq",,"Position","TC.O.SSE.510300.202009.C.4.7","1999_2-0101944","Quantity") -> -1 | D11: =RTD("irtdq",,"Position","TC.O.SSE.510300.202009.C.4.7","1999_2-0101944","SumLongQty") -> 0 | E11: =RTD("irtdq",,"Position","TC.O.SSE.510300.202009.C.4.7","1999_2-0101944","SumShortQty") -> 1 | F11: =RTD("irtdq",,"Position","TC.O.SSE.510300.202009.C.4.7","1999_2-0101944","PosDelta") -> 0 | G11: =RTD("irtdq",,"Position","TC.O.SSE.510300.202009.C.4.7","1999_2-0101944","$Delta") -> 0 | H11: =RTD("irtdq",,"Position","TC.O.SSE.510300.202009.C.4.7","1999_2-0101944","$Gamma") -> 0 | I11: =RTD("irtdq",,"Position","TC.O.SSE.510300.202009.C.4.7","1999_2-0101944","$Theta") -> 0 | J11: =RTD("irtdq",,"Position","TC.O.SSE.510300.202009.C.4.7","1999_2-0101944","$Vega") -> 0 | K11: =RTD("irtdq",,"Position","TC.O.SSE.510300.202009.C.4.7","1999_2-0101944","$Rho") -> 0 | L11: =RTD("irtdq",,"Position","TC.O.SSE.510300.202009.C.4.7","1999_2-0101944","$Charm") -> 0 | M11: =RTD("irtdq",,"Position","TC.O.SSE.510300.202009.C.4.7","1999_2-0101944","$Vanna") -> 0 | N11: =RTD("irtdq",,"Position","TC.O.SSE.510300.202009.C.4.7","1999_2-0101944","$Vomma") -> 0 | O11: =RTD("irtdq",,"Position","TC.O.SSE.510300.202009.C.4.7","1999_2-0101944","$Speed") -> 0 | P11: =RTD("irtdq",,"Position","TC.O.SSE.510300.202009.C.4.7","1999_2-0101944","$Zomma") -> 0 | Q11: =RTD("irtdq",,"Position","TC.O.SSE.510300.202009.C.4.7","1999_2-0101944","PosTimeValue") -> 2.999999 | R11: =RTD("irtdq",,"Position","TC.O.SSE.510300.202009.C.4.7","1999_2-0101944","PNL") -> 191.9999995 | S11: =RTD("irtdq",,"Position","TC.O.SSE.510300.202009.C.4.7","1999_2-0101944","TheoPNL") -> 44.352809 | T11: =RTD("irtdq",,"Position","TC.O.SSE.510300.202009.C.4.7","1999_2-0101944","Covered") -> 0 | U11: =RTD("irtdq",,"Position","TC.O.SSE.510300.202009.C.4.7","1999_2-0101944","LongAvailable") -> 0 | V11: =RTD("irtdq",,"Position","TC.O.SSE.510300.202009.C.4.7","1999_2-0101944","ShortAvailable") -> 1 | W11: =RTD("irtdq",,"Position","TC.O.SSE.510300.202009.C.4.7","1999_2-0101944","AveragePrice") -> 0.0592 | X11: =RTD("irtdq",,"Position","TC.O.SSE.510300.202009.C.4.7","1999_2-0101944","OpenPrice") -> 0.0592 | Y11: =RTD("irtdq",,"Position","TC.O.SSE.510300.202009.C.4.7","1999_2-0101944","LongAvgPrice") -> 0 | Z11: =RTD("irtdq",,"Position","TC.O.SSE.510300.202009.C.4.7","1999_2-0101944","ShortAvgPrice") -> 0.0592 | AA11: =RTD("irtdq",,"Position","TC.O.SSE.510300.202009.C.4.7","1999_2-0101944","FloatProfitByDate") -> 588.9999995 | AB11: =RTD("irtdq",,"Position","TC.O.SSE.510300.202009.C.4.7","1999_2-0101944","FloatProfitByDatePercent") -> 99.49324316 | AC11: =RTD("irtdq",,"Position","TC.O.SSE.510300.202009.C.4.7","1999_2-0101944","FloatProfitByTrade") -> 588.9999995 | AD11: =RTD("irtdq",,"Position","TC.O.SSE.510300.202009.C.4.7","1999_2-0101944","FloatProfitByTradePercent") -> 99.49324316 | AE11: =RTD("irtdq",,"Position","TC.O.SSE.510300.202009.C.4.7","1999_2-0101944","MarketPrice") -> -3 | AF11: =RTD("irtdq",,"TC.O.SSE.510300.202009.C.4.7","Last") -> 0.0003 | AG11: =RTD("irtdq",,"TC.O.SSE.510300.202009.C.4.7","PercentChange") -> -98.46153846 | AH11: =RTD("irtdq",,"TC.O.SSE.510300.202009.C.4.7","Bid") -> 0.0002 | AI11: =RTD("irtdq",,"TC.O.SSE.510300.202009.C.4.7","Ask") -> 0.0003 | AJ11: =RTD("irtdq",,"TC.O.SSE.510300.202009.C.4.7","BidQty") -> 11 | AK11: =RTD("irtdq",,"TC.O.SSE.510300.202009.C.4.7","AskQty") -> 732 | AL11: =RTD("irtdq",,"Position","TC.O.SSE.510300.202009.C.4.7","1999_2-0101944","UsedMargin") -> 0 | AM11: =RTD("irtdq",,"Position","TC.O.SSE.510300.202009.C.4.7","1999_2-0101944","FrozenMargin") -> 0 | AN11: =RTD("irtdq",,"Position","TC.O.SSE.510300.202009.C.4.7","1999_2-0101944","Commission") -> 0 | AO11: O | AP11: SSE | AQ11: 4.7
A12: 1999_2-0101944 | B12: TC.O.SSE.510050.202009.C.3.3 | C12: =RTD("irtdq",,"Position","TC.O.SSE.510050.202009.C.3.3","1999_2-0101944","Quantity") -> 4 | D12: =RTD("irtdq",,"Position","TC.O.SSE.510050.202009.C.3.3","1999_2-0101944","SumLongQty") -> 4 | E12: =RTD("irtdq",,"Position","TC.O.SSE.510050.202009.C.3.3","1999_2-0101944","SumShortQty") -> 0 | F12: =RTD("irtdq",,"Position","TC.O.SSE.510050.202009.C.3.3","1999_2-0101944","PosDelta") -> 0 | G12: =RTD("irtdq",,"Position","TC.O.SSE.510050.202009.C.3.3","1999_2-0101944","$Delta") -> 0 | H12: =RTD("irtdq",,"Position","TC.O.SSE.510050.202009.C.3.3","1999_2-0101944","$Gamma") -> 0 | I12: =RTD("irtdq",,"Position","TC.O.SSE.510050.202009.C.3.3","1999_2-0101944","$Theta") -> 0 | J12: =RTD("irtdq",,"Position","TC.O.SSE.510050.202009.C.3.3","1999_2-0101944","$Vega") -> 0 | K12: =RTD("irtdq",,"Position","TC.O.SSE.510050.202009.C.3.3","1999_2-0101944","$Rho") -> 0 | L12: =RTD("irtdq",,"Position","TC.O.SSE.510050.202009.C.3.3","1999_2-0101944","$Charm") -> 0 | M12: =RTD("irtdq",,"Position","TC.O.SSE.510050.202009.C.3.3","1999_2-0101944","$Vanna") -> 0 | N12: =RTD("irtdq",,"Position","TC.O.SSE.510050.202009.C.3.3","1999_2-0101944","$Vomma") -> 0 | O12: =RTD("irtdq",,"Position","TC.O.SSE.510050.202009.C.3.3","1999_2-0101944","$Speed") -> 0 | P12: =RTD("irtdq",,"Position","TC.O.SSE.510050.202009.C.3.3","1999_2-0101944","$Zomma") -> 0 | Q12: =RTD("irtdq",,"Position","TC.O.SSE.510050.202009.C.3.3","1999_2-0101944","PosTimeValue") -> -28 | R12: =RTD("irtdq",,"Position","TC.O.SSE.510050.202009.C.3.3","1999_2-0101944","PNL") -> -827.999998 | S12: =RTD("irtdq",,"Position","TC.O.SSE.510050.202009.C.3.3","1999_2-0101944","TheoPNL") -> -800 | T12: =RTD("irtdq",,"Position","TC.O.SSE.510050.202009.C.3.3","1999_2-0101944","Covered") -> 0 | U12: =RTD("irtdq",,"Position","TC.O.SSE.510050.202009.C.3.3","1999_2-0101944","LongAvailable") -> 4 | V12: =RTD("irtdq",,"Position","TC.O.SSE.510050.202009.C.3.3","1999_2-0101944","ShortAvailable") -> 0 | W12: =RTD("irtdq",,"Position","TC.O.SSE.510050.202009.C.3.3","1999_2-0101944","AveragePrice") -> 0.1001 | X12: =RTD("irtdq",,"Position","TC.O.SSE.510050.202009.C.3.3","1999_2-0101944","OpenPrice") -> 0.1001 | Y12: =RTD("irtdq",,"Position","TC.O.SSE.510050.202009.C.3.3","1999_2-0101944","LongAvgPrice") -> 0.1001 | Z12: =RTD("irtdq",,"Position","TC.O.SSE.510050.202009.C.3.3","1999_2-0101944","ShortAvgPrice") -> 0 | AA12: =RTD("irtdq",,"Position","TC.O.SSE.510050.202009.C.3.3","1999_2-0101944","FloatProfitByDate") -> -3743.999998 | AB12: =RTD("irtdq",,"Position","TC.O.SSE.510050.202009.C.3.3","1999_2-0101944","FloatProfitByDatePercent") -> -93.50649346 | AC12: =RTD("irtdq",,"Position","TC.O.SSE.510050.202009.C.3.3","1999_2-0101944","FloatProfitByTrade") -> -3743.999998 | AD12: =RTD("irtdq",,"Position","TC.O.SSE.510050.202009.C.3.3","1999_2-0101944","FloatProfitByTradePercent") -> -93.50649346 | AE12: =RTD("irtdq",,"Position","TC.O.SSE.510050.202009.C.3.3","1999_2-0101944","MarketPrice") -> 260.000002 | AF12: =RTD("irtdq",,"TC.O.SSE.510050.202009.C.3.3","Last") -> 0.0065 | AG12: =RTD("irtdq",,"TC.O.SSE.510050.202009.C.3.3","PercentChange") -> -76.10294118 | AH12: =RTD("irtdq",,"TC.O.SSE.510050.202009.C.3.3","Bid") -> 0.0064 | AI12: =RTD("irtdq",,"TC.O.SSE.510050.202009.C.3.3","Ask") -> 0.0065 | AJ12: =RTD("irtdq",,"TC.O.SSE.510050.202009.C.3.3","BidQty") -> 57 | AK12: =RTD("irtdq",,"TC.O.SSE.510050.202009.C.3.3","AskQty") -> 5 | AL12: =RTD("irtdq",,"Position","TC.O.SSE.510050.202009.C.3.3","1999_2-0101944","UsedMargin") -> 0 | AM12: =RTD("irtdq",,"Position","TC.O.SSE.510050.202009.C.3.3","1999_2-0101944","FrozenMargin") -> 0 | AN12: =RTD("irtdq",,"Position","TC.O.SSE.510050.202009.C.3.3","1999_2-0101944","Commission") -> 0 | AO12: O | AP12: SSE | AQ12: 3.3
A13: 1999_2-0101944 | B13: TC.O.SZSE.159919A.202009.C.4.84 | C13: =RTD("irtdq",,"Position","TC.O.SZSE.159919A.202009.C.4.84","1999_2-0101944","Quantity") -> 1 | D13: =RTD("irtdq",,"Position","TC.O.SZSE.159919A.202009.C.4.84","1999_2-0101944","SumLongQty") -> 1 | E13: =RTD("irtdq",,"Position","TC.O.SZSE.159919A.202009.C.4.84","1999_2-0101944","SumShortQty") -> 0 | F13: =RTD("irtdq",,"Position","TC.O.SZSE.159919A.202009.C.4.84","1999_2-0101944","PosDelta") -> 0.0042123783 | G13: =RTD("irtdq",,"Position","TC.O.SZSE.159919A.202009.C.4.84","1999_2-0101944","$Delta") -> 42.1238 | H13: =RTD("irtdq",,"Position","TC.O.SZSE.159919A.202009.C.4.84","1999_2-0101944","$Gamma") -> 1.6865 | I13: =RTD("irtdq",,"Position","TC.O.SZSE.159919A.202009.C.4.84","1999_2-0101944","$Theta") -> -6.3591 | J13: =RTD("irtdq",,"Position","TC.O.SZSE.159919A.202009.C.4.84","1999_2-0101944","$Vega") -> 0.2602 | K13: =RTD("irtdq",,"Position","TC.O.SZSE.159919A.202009.C.4.84","1999_2-0101944","$Rho") -> 0 | L13: =RTD("irtdq",,"Position","TC.O.SZSE.159919A.202009.C.4.84","1999_2-0101944","$Charm") -> -366415.2524 | M13: =RTD("irtdq",,"Position","TC.O.SZSE.159919A.202009.C.4.84","1999_2-0101944","$Vanna") -> 899.9239 | N13: =RTD("irtdq",,"Position","TC.O.SZSE.159919A.202009.C.4.84","1999_2-0101944","$Vomma") -> 497.2287 | O13: =RTD("irtdq",,"Position","TC.O.SZSE.159919A.202009.C.4.84","1999_2-0101944","$Speed") -> 252329.3897 | P13: =RTD("irtdq",,"Position","TC.O.SZSE.159919A.202009.C.4.84","1999_2-0101944","$Zomma") -> 26498.7473 | Q13: =RTD("irtdq",,"Position","TC.O.SZSE.159919A.202009.C.4.84","1999_2-0101944","PosTimeValue") -> 1 | R13: =RTD("irtdq",,"Position","TC.O.SZSE.159919A.202009.C.4.84","1999_2-0101944","PNL") -> -3 | S13: =RTD("irtdq",,"Position","TC.O.SZSE.159919A.202009.C.4.84","1999_2-0101944","TheoPNL") -> -2.999857 | T13: =RTD("irtdq",,"Position","TC.O.SZSE.159919A.202009.C.4.84","1999_2-0101944","Covered") -> 0 | U13: =RTD("irtdq",,"Position","TC.O.SZSE.159919A.202009.C.4.84","1999_2-0101944","LongAvailable") -> 1 | V13: =RTD("irtdq",,"Position","TC.O.SZSE.159919A.202009.C.4.84","1999_2-0101944","ShortAvailable") -> 0 | W13: =RTD("irtdq",,"Position","TC.O.SZSE.159919A.202009.C.4.84","1999_2-0101944","AveragePrice") -> 0.0125 | X13: =RTD("irtdq",,"Position","TC.O.SZSE.159919A.202009.C.4.84","1999_2-0101944","OpenPrice") -> 0.0125 | Y13: =RTD("irtdq",,"Position","TC.O.SZSE.159919A.202009.C.4.84","1999_2-0101944","LongAvgPrice") -> 0.0125 | Z13: =RTD("irtdq",,"Position","TC.O.SZSE.159919A.202009.C.4.84","1999_2-0101944","ShortAvgPrice") -> 0 | AA13: =RTD("irtdq",,"Position","TC.O.SZSE.159919A.202009.C.4.84","1999_2-0101944","FloatProfitByDate") -> -124 | AB13: =RTD("irtdq",,"Position","TC.O.SZSE.159919A.202009.C.4.84","1999_2-0101944","FloatProfitByDatePercent") -> -99.2 | AC13: =RTD("irtdq",,"Position","TC.O.SZSE.159919A.202009.C.4.84","1999_2-0101944","FloatProfitByTrade") -> -124 | AD13: =RTD("irtdq",,"Position","TC.O.SZSE.159919A.202009.C.4.84","1999_2-0101944","FloatProfitByTradePercent") -> -99.2 | AE13: =RTD("irtdq",,"Position","TC.O.SZSE.159919A.202009.C.4.84","1999_2-0101944","MarketPrice") -> 1 | AF13: =RTD("irtdq",,"TC.O.SZSE.159919A.202009.C.4.84","Last") -> 0.0001 | AG13: =RTD("irtdq",,"TC.O.SZSE.159919A.202009.C.4.84","PercentChange") -> -75 | AH13: =RTD("irtdq",,"TC.O.SZSE.159919A.202009.C.4.84","Bid") -> 0 | AI13: =RTD("irtdq",,"TC.O.SZSE.159919A.202009.C.4.84","Ask") -> 0.0001 | AJ13: =RTD("irtdq",,"TC.O.SZSE.159919A.202009.C.4.84","BidQty") -> 0 | AK13: =RTD("irtdq",,"TC.O.SZSE.159919A.202009.C.4.84","AskQty") -> 95 | AL13: =RTD("irtdq",,"Position","TC.O.SZSE.159919A.202009.C.4.84","1999_2-0101944","UsedMargin") -> 0 | AM13: =RTD("irtdq",,"Position","TC.O.SZSE.159919A.202009.C.4.84","1999_2-0101944","FrozenMargin") -> 0 | AN13: =RTD("irtdq",,"Position","TC.O.SZSE.159919A.202009.C.4.84","1999_2-0101944","Commission") -> 0 | AO13: O | AP13: SZSE | AQ13: 4.84
A14: 1999_2-0101944 | B14: TC.O.SSE.510050.202010.P.3.2 | C14: =RTD("irtdq",,"Position","TC.O.SSE.510050.202010.P.3.2","1999_2-0101944","Quantity") -> 1 | D14: =RTD("irtdq",,"Position","TC.O.SSE.510050.202010.P.3.2","1999_2-0101944","SumLongQty") -> 1 | E14: =RTD("irtdq",,"Position","TC.O.SSE.510050.202010.P.3.2","1999_2-0101944","SumShortQty") -> 0 | F14: =RTD("irtdq",,"Position","TC.O.SSE.510050.202010.P.3.2","1999_2-0101944","PosDelta") -> -0.370113074 | G14: =RTD("irtdq",,"Position","TC.O.SSE.510050.202010.P.3.2","1999_2-0101944","$Delta") -> -3701.1307 | H14: =RTD("irtdq",,"Position","TC.O.SSE.510050.202010.P.3.2","1999_2-0101944","$Gamma") -> 8.9176 | I14: =RTD("irtdq",,"Position","TC.O.SSE.510050.202010.P.3.2","1999_2-0101944","$Theta") -> -15.8872 | J14: =RTD("irtdq",,"Position","TC.O.SSE.510050.202010.P.3.2","1999_2-0101944","$Vega") -> 33.5093 | K14: =RTD("irtdq",,"Position","TC.O.SSE.510050.202010.P.3.2","1999_2-0101944","$Rho") -> -0.4435 | L14: =RTD("irtdq",,"Position","TC.O.SSE.510050.202010.P.3.2","1999_2-0101944","$Charm") -> 21945.1393 | M14: =RTD("irtdq",,"Position","TC.O.SSE.510050.202010.P.3.2","1999_2-0101944","$Vanna") -> -3875.6988 | N14: =RTD("irtdq",,"Position","TC.O.SSE.510050.202010.P.3.2","1999_2-0101944","$Vomma") -> 1140.3273 | O14: =RTD("irtdq",,"Position","TC.O.SSE.510050.202010.P.3.2","1999_2-0101944","$Speed") -> -96418.0025 | P14: =RTD("irtdq",,"Position","TC.O.SSE.510050.202010.P.3.2","1999_2-0101944","$Zomma") -> -59551.8215 | Q14: =RTD("irtdq",,"Position","TC.O.SSE.510050.202010.P.3.2","1999_2-0101944","PosTimeValue") -> 601 | R14: =RTD("irtdq",,"Position","TC.O.SSE.510050.202010.P.3.2","1999_2-0101944","PNL") -> 182.0000005 | S14: =RTD("irtdq",,"Position","TC.O.SSE.510050.202010.P.3.2","1999_2-0101944","TheoPNL") -> 181.99927 | T14: =RTD("irtdq",,"Position","TC.O.SSE.510050.202010.P.3.2","1999_2-0101944","Covered") -> 0 | U14: =RTD("irtdq",,"Position","TC.O.SSE.510050.202010.P.3.2","1999_2-0101944","LongAvailable") -> 1 | V14: =RTD("irtdq",,"Position","TC.O.SSE.510050.202010.P.3.2","1999_2-0101944","ShortAvailable") -> 0 | W14: =RTD("irtdq",,"Position","TC.O.SSE.510050.202010.P.3.2","1999_2-0101944","AveragePrice") -> 0.038 | X14: =RTD("irtdq",,"Position","TC.O.SSE.510050.202010.P.3.2","1999_2-0101944","OpenPrice") -> 0.038 | Y14: =RTD("irtdq",,"Position","TC.O.SSE.510050.202010.P.3.2","1999_2-0101944","LongAvgPrice") -> 0.038 | Z14: =RTD("irtdq",,"Position","TC.O.SSE.510050.202010.P.3.2","1999_2-0101944","ShortAvgPrice") -> 0 | AA14: =RTD("irtdq",,"Position","TC.O.SSE.510050.202010.P.3.2","1999_2-0101944","FloatProfitByDate") -> 221.0000005 | AB14: =RTD("irtdq",,"Position","TC.O.SSE.510050.202010.P.3.2","1999_2-0101944","FloatProfitByDatePercent") -> 58.15789487 | AC14: =RTD("irtdq",,"Position","TC.O.SSE.510050.202010.P.3.2","1999_2-0101944","FloatProfitByTrade") -> 221.0000005 | AD14: =RTD("irtdq",,"Position","TC.O.SSE.510050.202010.P.3.2","1999_2-0101944","FloatProfitByTradePercent") -> 58.15789487 | AE14: =RTD("irtdq",,"Position","TC.O.SSE.510050.202010.P.3.2","1999_2-0101944","MarketPrice") -> 601 | AF14: =RTD("irtdq",,"TC.O.SSE.510050.202010.P.3.2","Last") -> 0.0601 | AG14: =RTD("irtdq",,"TC.O.SSE.510050.202010.P.3.2","PercentChange") -> 43.43675418 | AH14: =RTD("irtdq",,"TC.O.SSE.510050.202010.P.3.2","Bid") -> 0.0601 | AI14: =RTD("irtdq",,"TC.O.SSE.510050.202010.P.3.2","Ask") -> 0.0601 | AJ14: =RTD("irtdq",,"TC.O.SSE.510050.202010.P.3.2","BidQty") -> 314 | AK14: =RTD("irtdq",,"TC.O.SSE.510050.202010.P.3.2","AskQty") -> 314 | AL14: =RTD("irtdq",,"Position","TC.O.SSE.510050.202010.P.3.2","1999_2-0101944","UsedMargin") -> 0 | AM14: =RTD("irtdq",,"Position","TC.O.SSE.510050.202010.P.3.2","1999_2-0101944","FrozenMargin") -> 0 | AN14: =RTD("irtdq",,"Position","TC.O.SSE.510050.202010.P.3.2","1999_2-0101944","Commission") -> 0 | AO14: O | AP14: SSE | AQ14: 3.2
A15: 1999_2-0101944 | B15: TC.O.SZSE.159919.202009.C.4.7 | C15: =RTD("irtdq",,"Position","TC.O.SZSE.159919.202009.C.4.7","1999_2-0101944","Quantity") -> 1 | D15: =RTD("irtdq",,"Position","TC.O.SZSE.159919.202009.C.4.7","1999_2-0101944","SumLongQty") -> 1 | E15: =RTD("irtdq",,"Position","TC.O.SZSE.159919.202009.C.4.7","1999_2-0101944","SumShortQty") -> 0 | F15: =RTD("irtdq",,"Position","TC.O.SZSE.159919.202009.C.4.7","1999_2-0101944","PosDelta") -> 0.010266607 | G15: =RTD("irtdq",,"Position","TC.O.SZSE.159919.202009.C.4.7","1999_2-0101944","$Delta") -> 102.6661 | H15: =RTD("irtdq",,"Position","TC.O.SZSE.159919.202009.C.4.7","1999_2-0101944","$Gamma") -> 9.8938 | I15: =RTD("irtdq",,"Position","TC.O.SZSE.159919.202009.C.4.7","1999_2-0101944","$Theta") -> -5.2359 | J15: =RTD("irtdq",,"Position","TC.O.SZSE.159919.202009.C.4.7","1999_2-0101944","$Vega") -> 0.5719 | K15: =RTD("irtdq",,"Position","TC.O.SZSE.159919.202009.C.4.7","1999_2-0101944","$Rho") -> 0 | L15: =RTD("irtdq",,"Position","TC.O.SZSE.159919.202009.C.4.7","1999_2-0101944","$Charm") -> -705533.3703 | M15: =RTD("irtdq",,"Position","TC.O.SZSE.159919.202009.C.4.7","1999_2-0101944","$Vanna") -> 4625.2908 | N15: =RTD("irtdq",,"Position","TC.O.SZSE.159919.202009.C.4.7","1999_2-0101944","$Vomma") -> 2247.0189 | O15: =RTD("irtdq",,"Position","TC.O.SZSE.159919.202009.C.4.7","1999_2-0101944","$Speed") -> 3486754.708 | P15: =RTD("irtdq",,"Position","TC.O.SZSE.159919.202009.C.4.7","1999_2-0101944","$Zomma") -> 303718.2915 | Q15: =RTD("irtdq",,"Position","TC.O.SZSE.159919.202009.C.4.7","1999_2-0101944","PosTimeValue") -> 1 | R15: =RTD("irtdq",,"Position","TC.O.SZSE.159919.202009.C.4.7","1999_2-0101944","PNL") -> -33 | S15: =RTD("irtdq",,"Position","TC.O.SZSE.159919.202009.C.4.7","1999_2-0101944","TheoPNL") -> -33.000958 | T15: =RTD("irtdq",,"Position","TC.O.SZSE.159919.202009.C.4.7","1999_2-0101944","Covered") -> 0 | U15: =RTD("irtdq",,"Position","TC.O.SZSE.159919.202009.C.4.7","1999_2-0101944","LongAvailable") -> 1 | V15: =RTD("irtdq",,"Position","TC.O.SZSE.159919.202009.C.4.7","1999_2-0101944","ShortAvailable") -> 0 | W15: =RTD("irtdq",,"Position","TC.O.SZSE.159919.202009.C.4.7","1999_2-0101944","AveragePrice") -> 0.018 | X15: =RTD("irtdq",,"Position","TC.O.SZSE.159919.202009.C.4.7","1999_2-0101944","OpenPrice") -> 0.018 | Y15: =RTD("irtdq",,"Position","TC.O.SZSE.159919.202009.C.4.7","1999_2-0101944","LongAvgPrice") -> 0.018 | Z15: =RTD("irtdq",,"Position","TC.O.SZSE.159919.202009.C.4.7","1999_2-0101944","ShortAvgPrice") -> 0 | AA15: =RTD("irtdq",,"Position","TC.O.SZSE.159919.202009.C.4.7","1999_2-0101944","FloatProfitByDate") -> -179 | AB15: =RTD("irtdq",,"Position","TC.O.SZSE.159919.202009.C.4.7","1999_2-0101944","FloatProfitByDatePercent") -> -99.44444444 | AC15: =RTD("irtdq",,"Position","TC.O.SZSE.159919.202009.C.4.7","1999_2-0101944","FloatProfitByTrade") -> -179 | AD15: =RTD("irtdq",,"Position","TC.O.SZSE.159919.202009.C.4.7","1999_2-0101944","FloatProfitByTradePercent") -> -99.44444444 | AE15: =RTD("irtdq",,"Position","TC.O.SZSE.159919.202009.C.4.7","1999_2-0101944","MarketPrice") -> 1 | AF15: =RTD("irtdq",,"TC.O.SZSE.159919.202009.C.4.7","Last") -> 0.0001 | AG15: =RTD("irtdq",,"TC.O.SZSE.159919.202009.C.4.7","PercentChange") -> -97.05882353 | AH15: =RTD("irtdq",,"TC.O.SZSE.159919.202009.C.4.7","Bid") -> 0 | AI15: =RTD("irtdq",,"TC.O.SZSE.159919.202009.C.4.7","Ask") -> 0.0001 | AJ15: =RTD("irtdq",,"TC.O.SZSE.159919.202009.C.4.7","BidQty") -> 0 | AK15: =RTD("irtdq",,"TC.O.SZSE.159919.202009.C.4.7","AskQty") -> 2 | AL15: =RTD("irtdq",,"Position","TC.O.SZSE.159919.202009.C.4.7","1999_2-0101944","UsedMargin") -> 0 | AM15: =RTD("irtdq",,"Position","TC.O.SZSE.159919.202009.C.4.7","1999_2-0101944","FrozenMargin") -> 0 | AN15: =RTD("irtdq",,"Position","TC.O.SZSE.159919.202009.C.4.7","1999_2-0101944","Commission") -> 0 | AO15: O | AP15: SZSE | AQ15: 4.7
A16: 1999_2-0101944 | B16: TC.O.SZSE.159919A.202009.C.4.744 | C16: =RTD("irtdq",,"Position","TC.O.SZSE.159919A.202009.C.4.744","1999_2-0101944","Quantity") -> 2 | D16: =RTD("irtdq",,"Position","TC.O.SZSE.159919A.202009.C.4.744","1999_2-0101944","SumLongQty") -> 2 | E16: =RTD("irtdq",,"Position","TC.O.SZSE.159919A.202009.C.4.744","1999_2-0101944","SumShortQty") -> 0 | F16: =RTD("irtdq",,"Position","TC.O.SZSE.159919A.202009.C.4.744","1999_2-0101944","PosDelta") -> 0.0138175202 | G16: =RTD("irtdq",,"Position","TC.O.SZSE.159919A.202009.C.4.744","1999_2-0101944","$Delta") -> 138.1752 | H16: =RTD("irtdq",,"Position","TC.O.SZSE.159919A.202009.C.4.744","1999_2-0101944","$Gamma") -> 9.0192 | I16: =RTD("irtdq",,"Position","TC.O.SZSE.159919A.202009.C.4.744","1999_2-0101944","$Theta") -> -11.4622 | J16: =RTD("irtdq",,"Position","TC.O.SZSE.159919A.202009.C.4.744","1999_2-0101944","$Vega") -> 0.808 | K16: =RTD("irtdq",,"Position","TC.O.SZSE.159919A.202009.C.4.744","1999_2-0101944","$Rho") -> 0 | L16: =RTD("irtdq",,"Position","TC.O.SZSE.159919A.202009.C.4.744","1999_2-0101944","$Charm") -> -1060592.673 | M16: =RTD("irtdq",,"Position","TC.O.SZSE.159919A.202009.C.4.744","1999_2-0101944","$Vanna") -> 4486.7589 | N16: =RTD("irtdq",,"Position","TC.O.SZSE.159919A.202009.C.4.744","1999_2-0101944","$Vomma") -> 2316.6422 | O16: =RTD("irtdq",,"Position","TC.O.SZSE.159919A.202009.C.4.744","1999_2-0101944","$Speed") -> 2177273.091 | P16: =RTD("irtdq",,"Position","TC.O.SZSE.159919A.202009.C.4.744","1999_2-0101944","$Zomma") -> 207404.1682 | Q16: =RTD("irtdq",,"Position","TC.O.SZSE.159919A.202009.C.4.744","1999_2-0101944","PosTimeValue") -> 2 | R16: =RTD("irtdq",,"Position","TC.O.SZSE.159919A.202009.C.4.744","1999_2-0101944","PNL") -> -14 | S16: =RTD("irtdq",,"Position","TC.O.SZSE.159919A.202009.C.4.744","1999_2-0101944","TheoPNL") -> -14.001468 | T16: =RTD("irtdq",,"Position","TC.O.SZSE.159919A.202009.C.4.744","1999_2-0101944","Covered") -> 0 | U16: =RTD("irtdq",,"Position","TC.O.SZSE.159919A.202009.C.4.744","1999_2-0101944","LongAvailable") -> 2 | V16: =RTD("irtdq",,"Position","TC.O.SZSE.159919A.202009.C.4.744","1999_2-0101944","ShortAvailable") -> 0 | W16: =RTD("irtdq",,"Position","TC.O.SZSE.159919A.202009.C.4.744","1999_2-0101944","AveragePrice") -> 0.03985 | X16: =RTD("irtdq",,"Position","TC.O.SZSE.159919A.202009.C.4.744","1999_2-0101944","OpenPrice") -> 0.03985 | Y16: =RTD("irtdq",,"Position","TC.O.SZSE.159919A.202009.C.4.744","1999_2-0101944","LongAvgPrice") -> 0.03985 | Z16: =RTD("irtdq",,"Position","TC.O.SZSE.159919A.202009.C.4.744","1999_2-0101944","ShortAvgPrice") -> 0 | AA16: =RTD("irtdq",,"Position","TC.O.SZSE.159919A.202009.C.4.744","1999_2-0101944","FloatProfitByDate") -> -795 | AB16: =RTD("irtdq",,"Position","TC.O.SZSE.159919A.202009.C.4.744","1999_2-0101944","FloatProfitByDatePercent") -> -99.74905897 | AC16: =RTD("irtdq",,"Position","TC.O.SZSE.159919A.202009.C.4.744","1999_2-0101944","FloatProfitByTrade") -> -795 | AD16: =RTD("irtdq",,"Position","TC.O.SZSE.159919A.202009.C.4.744","1999_2-0101944","FloatProfitByTradePercent") -> -99.74905897 | AE16: =RTD("irtdq",,"Position","TC.O.SZSE.159919A.202009.C.4.744","1999_2-0101944","MarketPrice") -> 2 | AF16: =RTD("irtdq",,"TC.O.SZSE.159919A.202009.C.4.744","Last") -> 0.0001 | AG16: =RTD("irtdq",,"TC.O.SZSE.159919A.202009.C.4.744","PercentChange") -> -87.5 | AH16: =RTD("irtdq",,"TC.O.SZSE.159919A.202009.C.4.744","Bid") -> 0 | AI16: =RTD("irtdq",,"TC.O.SZSE.159919A.202009.C.4.744","Ask") -> 0.0001 | AJ16: =RTD("irtdq",,"TC.O.SZSE.159919A.202009.C.4.744","BidQty") -> 0 | AK16: =RTD("irtdq",,"TC.O.SZSE.159919A.202009.C.4.744","AskQty") -> 53 | AL16: =RTD("irtdq",,"Position","TC.O.SZSE.159919A.202009.C.4.744","1999_2-0101944","UsedMargin") -> 0 | AM16: =RTD("irtdq",,"Position","TC.O.SZSE.159919A.202009.C.4.744","1999_2-0101944","FrozenMargin") -> 0 | AN16: =RTD("irtdq",,"Position","TC.O.SZSE.159919A.202009.C.4.744","1999_2-0101944","Commission") -> 0 | AO16: O | AP16: SZSE | AQ16: 4.744
A24: $Delta
A25: 1%$Gamma
A26: $Theta
A27: $Vega
A28: $Rho
A29: 认购净仓
A30: 认沽净仓
A31: 认购/认沽留仓净额
A32: 净成交
A33: 时间价值
A34: 估算当日盈亏
A35: 估算理论盈亏
A36: 权利仓
A37: 总开仓
A38: 总持仓

Sheet T字报价
A4: =RTD("irtdq",,"System","AlgoMaster264") -> -
A5: 合约 | B5: 描述 | C5: 买价 | D5: 卖价 | E5: 最新价 | F5: 涨跌 | G5: 涨跌幅 | H5: 现量 | I5: 总量 | J5: SymbolCode | K5: 合约编码 | L5: 到期日 | M5: 起始日 | N5: 交易所 | O5: 买量 | P5: 卖量 | Q5: 开盘价 | R5: 昨结算 | S5: 中间价 | T5: 最高价 | U5: 最低价 | V5: 涨停价 | W5: 跌停价 | X5: 结算价 | Y5: 昨收盘 | Z5: 昨量 | AA5: 昨持仓量 | AB5: 持仓量 | AC5: 净仓 | AD5: 委买 | AE5: 委卖 | AF5: 时间 | AG5: 成交金额 | AH5: Delta | AI5: Gamma | AJ5: Theta | AK5: Vega | AL5: Rho | AM5: BIV | AN5: SIV | AO5: IV | AP5: CPIV | AQ5: MIV | AR5: Charm | AS5: Vanna | AT5: Vomma | AU5: Speed | AV5: Zomma | AW5: 时间价值(标的) | AX5: 时间价值(合成)
A6: =RTD("irtdq",,"TC.F.CFFEX.IO.HOT","Instrument") -> - | B6: =RTD("irtdq",,"TC.F.CFFEX.IO.HOT","Description") -> - | C6: =RTD("irtdq",,"TC.F.CFFEX.IO.HOT","Bid") -> - | D6: =RTD("irtdq",,"TC.F.CFFEX.IO.HOT","Ask") -> - | E6: =RTD("irtdq",,"TC.F.CFFEX.IO.HOT","Last") -> - | F6: =RTD("irtdq",,"TC.F.CFFEX.IO.HOT","Netchg") -> - | G6: =RTD("irtdq",,"TC.F.CFFEX.IO.HOT","PercentChange") -> - | H6: =RTD("irtdq",,"TC.F.CFFEX.IO.HOT","LTQ") -> - | I6: =RTD("irtdq",,"TC.F.CFFEX.IO.HOT","Volume") -> - | J6: =RTD("irtdq",,"TC.F.CFFEX.IO.HOT","SymbolCode") -> - | K6: =RTD("irtdq",,"TC.F.CFFEX.IO.HOT","TradeSymbol") -> - | L6: =RTD("irtdq",,"TC.F.CFFEX.IO.HOT","EndDate") -> - | M6: =RTD("irtdq",,"TC.F.CFFEX.IO.HOT","BeginDate") -> - | N6: =RTD("irtdq",,"TC.F.CFFEX.IO.HOT","Exchange") -> - | O6: =RTD("irtdq",,"TC.F.CFFEX.IO.HOT","BidQty") -> - | P6: =RTD("irtdq",,"TC.F.CFFEX.IO.HOT","AskQty") -> - | Q6: =RTD("irtdq",,"TC.F.CFFEX.IO.HOT","OpeningPrice") -> - | R6: =RTD("irtdq",,"TC.F.CFFEX.IO.HOT","ReferencePrice") -> - | S6: =RTD("irtdq",,"TC.F.CFFEX.IO.HOT","Mid") -> - | T6: =RTD("irtdq",,"TC.F.CFFEX.IO.HOT","HighPrice") -> - | U6: =RTD("irtdq",,"TC.F.CFFEX.IO.HOT","LowPrice") -> - | V6: =RTD("irtdq",,"TC.F.CFFEX.IO.HOT","UpperLimitPrice") -> - | W6: =RTD("irtdq",,"TC.F.CFFEX.IO.HOT","LowerLimitPrice") -> - | X6: =RTD("irtdq",,"TC.F.CFFEX.IO.HOT","SettlementPrice") -> - | Y6: =RTD("irtdq",,"TC.F.CFFEX.IO.HOT","YesterdayClosedPrice") -> - | Z6: =RTD("irtdq",,"TC.F.CFFEX.IO.HOT","YesterdayTradeVolume") -> - | AA6: =RTD("irtdq",,"TC.F.CFFEX.IO.HOT","YesterdayOpenInterest") -> - | AB6: =RTD("irtdq",,"TC.F.CFFEX.IO.HOT","OpenInterest") -> - | AC6: =RTD("irtdq",,"TC.F.CFFEX.IO.HOT","Pos") -> - | AD6: =RTD("irtdq",,"TC.F.CFFEX.IO.HOT","WrkBuys") -> - | AE6: =RTD("irtdq",,"TC.F.CFFEX.IO.HOT","WrkSells") -> - | AF6: =RTD("irtdq",,"TC.F.CFFEX.IO.HOT","Time") -> - | AG6: =RTD("irtdq",,"TC.F.CFFEX.IO.HOT","TradeVolume") -> - | AH6: =RTD("irtdq",,"TC.F.CFFEX.IO.HOT","Delta") -> 0 | AI6: =RTD("irtdq",,"TC.F.CFFEX.IO.HOT","Gamma") -> 0 | AJ6: =RTD("irtdq",,"TC.F.CFFEX.IO.HOT","Theta") -> 0 | AK6: =RTD("irtdq",,"TC.F.CFFEX.IO.HOT","Vega") -> 0 | AL6: =RTD("irtdq",,"TC.F.CFFEX.IO.HOT","Rho") -> 0 | AM6: =RTD("irtdq",,"TC.F.CFFEX.IO.HOT","BIV") -> 0 | AN6: =RTD("irtdq",,"TC.F.CFFEX.IO.HOT","SIV") -> 0 | AO6: =RTD("irtdq",,"TC.F.CFFEX.IO.HOT","IV") -> 27.986 | AP6: =RTD("irtdq",,"TC.F.CFFEX.IO.HOT","CPIV") -> 0 | AQ6: =RTD("irtdq",,"TC.F.CFFEX.IO.HOT","MIV") -> 0 | AR6: =RTD("irtdq",,"TC.F.CFFEX.IO.HOT","Charm") -> 0 | AS6: =RTD("irtdq",,"TC.F.CFFEX.IO.HOT","Vanna") -> 0 | AT6: =RTD("irtdq",,"TC.F.CFFEX.IO.HOT","Vomma") -> 0 | AU6: =RTD("irtdq",,"TC.F.CFFEX.IO.HOT","Speed") -> 0 | AV6: =RTD("irtdq",,"TC.F.CFFEX.IO.HOT","Zomma") -> 0 | AW6: =RTD("irtdq",,"TC.F.CFFEX.IO.HOT","TV") -> 0 | AX6: =RTD("irtdq",,"TC.F.CFFEX.IO.HOT","ATV") -> 0
G8: 看涨（CALL） | Q8: 剩余天 | Z8: 看跌（PUT）
Q9: =DATEDIF(TODAY(),DATE(LEFT(RTD("irtdq",,"TC.O.CFFEX.IO.202010.C.5400","EndDate"),4),MID(RTD("irtdq",,"TC.O.CFFEX.IO.202010.C.5400","EndDate"),5,2),RIGHT(RTD("irtdq",,"TC.O.CFFEX.IO.202010.C.5400","EndDate"),2)),"d") -> 22

Sheet T字Greeks报价
A5: 合约 | B5: 描述 | C5: 买价 | D5: 卖价 | E5: 最新价 | F5: 涨跌 | G5: 涨跌幅 | H5: 现量 | I5: 总量 | J5: SymbolCode | K5: 合约编码 | L5: 到期日 | M5: 起始日 | N5: 交易所 | O5: 买量 | P5: 卖量 | Q5: 开盘价 | R5: 昨结算 | S5: 中间价 | T5: 最高价 | U5: 最低价 | V5: 涨停价 | W5: 跌停价 | X5: 结算价 | Y5: 昨收盘 | Z5: 昨量 | AA5: 昨持仓量 | AB5: 持仓量 | AC5: 净仓 | AD5: 委买 | AE5: 委卖 | AF5: 时间 | AG5: 成交金额 | AH5: Delta | AI5: Gamma | AJ5: Theta | AK5: Vega | AL5: Rho | AM5: BIV | AN5: SIV | AO5: IV | AP5: CPIV | AQ5: MIV | AR5: Charm | AS5: Vanna | AT5: Vomma | AU5: Speed | AV5: Zomma | AW5: 时间价值(标的) | AX5: 时间价值(合成)
A6: =RTD("irtdq",,"TC.S.SSE.510050","Instrument") -> 510050 | B6: =RTD("irtdq",,"TC.S.SSE.510050","Description") -> 50ETF(510050) | C6: =RTD("irtdq",,"TC.S.SSE.510050","Bid") -> 3.272 | D6: =RTD("irtdq",,"TC.S.SSE.510050","Ask") -> 3.273 | E6: =RTD("irtdq",,"TC.S.SSE.510050","Last") -> 3.273 | F6: =RTD("irtdq",,"TC.S.SSE.510050","Netchg") -> -0.052 | G6: =RTD("irtdq",,"TC.S.SSE.510050","PercentChange") -> -1.563909774 | H6: =RTD("irtdq",,"TC.S.SSE.510050","LTQ") -> 27800 | I6: =RTD("irtdq",,"TC.S.SSE.510050","Volume") -> 292207547 | J6: =RTD("irtdq",,"TC.S.SSE.510050","SymbolCode") -> TC.S.SSE.510050 | K6: =RTD("irtdq",,"TC.S.SSE.510050","TradeSymbol") -> TC.S.SSE.510050 | L6: =RTD("irtdq",,"TC.S.SSE.510050","EndDate") -> 0 | M6: =RTD("irtdq",,"TC.S.SSE.510050","BeginDate") -> 0 | N6: =RTD("irtdq",,"TC.S.SSE.510050","Exchange") -> SSE | O6: =RTD("irtdq",,"TC.S.SSE.510050","BidQty") -> 179000 | P6: =RTD("irtdq",,"TC.S.SSE.510050","AskQty") -> 3330700 | Q6: =RTD("irtdq",,"TC.S.SSE.510050","OpeningPrice") -> 3.305 | R6: =RTD("irtdq",,"TC.S.SSE.510050","ReferencePrice") -> 3.325 | S6: =RTD("irtdq",,"TC.S.SSE.510050","Mid") -> 3.273 | T6: =RTD("irtdq",,"TC.S.SSE.510050","HighPrice") -> 3.314 | U6: =RTD("irtdq",,"TC.S.SSE.510050","LowPrice") -> 3.268 | V6: =RTD("irtdq",,"TC.S.SSE.510050","UpperLimitPrice") -> 3.658 | W6: =RTD("irtdq",,"TC.S.SSE.510050","LowerLimitPrice") -> 2.993 | X6: =RTD("irtdq",,"TC.S.SSE.510050","SettlementPrice") -> 0 | Y6: =RTD("irtdq",,"TC.S.SSE.510050","YesterdayClosedPrice") -> 3.325 | Z6: =RTD("irtdq",,"TC.S.SSE.510050","YesterdayTradeVolume") -> 409635195 | AA6: =RTD("irtdq",,"TC.S.SSE.510050","YesterdayOpenInterest") -> 0 | AB6: =RTD("irtdq",,"TC.S.SSE.510050","OpenInterest") -> 0 | AC6: =RTD("irtdq",,"TC.S.SSE.510050","Pos") -> - | AD6: =RTD("irtdq",,"TC.S.SSE.510050","WrkBuys") -> - | AE6: =RTD("irtdq",,"TC.S.SSE.510050","WrkSells") -> - | AF6: =RTD("irtdq",,"TC.S.SSE.510050","Time") -> 14:58:54 | AG6: =RTD("irtdq",,"TC.S.SSE.510050","TradeVolume") -> 959753751 | AH6: =RTD("irtdq",,"TC.S.SSE.510050","Delta") -> 0 | AI6: =RTD("irtdq",,"TC.S.SSE.510050","Gamma") -> 0 | AJ6: =RTD("irtdq",,"TC.S.SSE.510050","Theta") -> 0 | AK6: =RTD("irtdq",,"TC.S.SSE.510050","Vega") -> 0 | AL6: =RTD("irtdq",,"TC.S.SSE.510050","Rho") -> 0 | AM6: =RTD("irtdq",,"TC.S.SSE.510050","BIV") -> 0 | AN6: =RTD("irtdq",,"TC.S.SSE.510050","SIV") -> 0 | AO6: =RTD("irtdq",,"TC.S.SSE.510050","IV") -> 26.064 | AP6: =RTD("irtdq",,"TC.S.SSE.510050","CPIV") -> 0 | AQ6: =RTD("irtdq",,"TC.S.SSE.510050","MIV") -> 0 | AR6: =RTD("irtdq",,"TC.S.SSE.510050","Charm") -> 0 | AS6: =RTD("irtdq",,"TC.S.SSE.510050","Vanna") -> 0 | AT6: =RTD("irtdq",,"TC.S.SSE.510050","Vomma") -> 0 | AU6: =RTD("irtdq",,"TC.S.SSE.510050","Speed") -> 0 | AV6: =RTD("irtdq",,"TC.S.SSE.510050","Zomma") -> 0 | AW6: =RTD("irtdq",,"TC.S.SSE.510050","TV") -> 0 | AX6: =RTD("irtdq",,"TC.S.SSE.510050","ATV") -> 0
H8: 看涨（CALL） | S8: 剩余天 | AC8: 看跌（PUT）
S9: =DATEDIF(TODAY(),DATE(LEFT(RTD("irtdq",,"TC.O.SSE.510050.202010.C.3.8","EndDate"),4),MID(RTD("irtdq",,"TC.O.SSE.510050.202010.C.3.8","EndDate"),5,2),RIGHT(RTD("irtdq",,"TC.O.SSE.510050.202010.C.3.8","EndDate"),2)),"d") -> 34
